bitfinex-derivatives/quotes_ETHF0:USTF0_20251210
["timestamp","ask_amount","ask_price","bid_price","bid_amount"]
[1765385303941,2.41425489,3353.7,3353.6,1.234]
[1765385304136,2.41425489,3353.7,3353.6,2.411]
[1765385304343,2.41425489,3353.7,3353.6,1.234]
[1765385304547,4.33535777,3353.7,3353.6,1.234]
[1765385304746,1.197,3353.4,3353.3,5.6188]
[1765385305445,2.82776798,3353.7,3353.6,2.411]
[1765385305639,4.01866798,3353.7,3353.6,2.411]
[1765385306641,2.82776798,3353.7,3353.6,2.411]
[1765385307042,3.74353153,3353.7,3353.6,2.411]
[1765385307443,4.93443153,3353.7,3353.6,2.411]
[1765385307640,0.94211844,3353.7,3353.6,2.411]
[1765385308142,0.02635489,3353.7,3353.6,2.411]
[1765385308945,0.94211844,3353.7,3353.6,2.411]
[1765385309147,0.02635489,3353.7,3353.6,2.411]
[1765385310145,0.94211844,3353.7,3353.6,2.411]
[1765385310346,0.02635489,3353.7,3353.6,2.411]
[1765385311443,0.94211844,3353.7,3353.6,2.411]
[1765385311949,0.02635489,3353.7,3353.6,2.411]
[1765385312248,3.23427115,3354.7,3353.6,2.411]
[1765385312249,1.844e-05,3354.1,3354.0,2.56047]
[1765385312445,1.60441309,3354.8,3354.7,2.4114]
[1765385312653,1.60441309,3355.0,3354.9,2.4114]
[1765385312839,3.2078,3355.2,3355.1,1.1781]
[1765385312840,5.5402,3355.2,3355.1,1.1781]
[1765385313145,5.54240114,3355.2,3355.1,1.18176055]
[1765385314550,4.36650114,3355.2,3355.1,2.41506055]
[1765385314743,0.00220114,3355.2,3355.1,2.41506055]
[1765385315444,1.15870114,3355.2,3355.1,2.41506055]
[1765385315749,2.33460114,3355.2,3355.1,2.41506055]
[1765385316350,1.12557649,3355.2,3355.1,2.41506055]
[1765385316546,2.30147649,3355.2,3355.1,0.00366055]
[1765385317051,2.30147649,3355.2,3355.1,1.18176055]
[1765385317453,2.30481335,3355.2,3355.1,0.00366055]
[1765385317746,2.3324,3354.6,3354.5,4.3859]
[1765385318145,2.3324,3354.6,3354.5,3.2078]
[1765385318347,2.3324,3354.6,3354.5,4.3859]
[1765385318853,2.3324,3354.6,3354.5,4.38829136]
[1765385319257,2.3324,3354.6,3354.5,3.21019136]
[1765385319451,2.3324,3354.6,3354.5,0.00239136]
[1765385320157,2.3324,3354.6,3354.5,1.18049136]
[1765385321053,2.3324,3354.6,3354.5,0.00239136]
[1765385322754,3.93681309,3354.6,3354.5,0.00239136]
[1765385322955,3.93681309,3354.6,3354.2,0.00447447]
[1765385322956,2.3324,3354.3,3354.2,0.00447447]
[1765385323552,2.3324,3354.3,3354.2,1.18257447]
[1765385323953,2.3324,3354.3,3354.2,1.18582229]
[1765385324161,3.2650878,3354.3,3354.2,1.18582229]
[1765385324363,4.86606086,3354.3,3354.2,1.18582229]
[1765385325051,3.69016086,3354.3,3354.2,2.41912229]
[1765385325265,0.9326878,3354.3,3354.2,2.41912229]
[1765385326265,2.3324,3354.6,3354.5,1.1781]
[1765385326559,2.3324,3354.6,3354.2,0.00772229]
[1765385326560,2.3324,3354.3,3354.2,0.00772229]
[1765385326859,3.2656655,3354.3,3354.2,0.00772229]
[1765385327559,3.2656655,3354.3,3354.2,1.18582229]
[1765385327766,3.2656655,3354.3,3354.2,0.00772229]
[1765385329255,3.2656655,3354.3,3354.2,1.18582229]
[1765385329567,3.2656655,3354.3,3354.2,0.00772229]
[1765385330161,2.0897655,3354.3,3354.2,2.41912229]
[1765385330366,0.9332655,3354.3,3354.2,2.41912229]
[1765385331067,2.0897655,3354.3,3354.2,2.41912229]
[1765385331269,3.2656655,3354.3,3354.2,0.00772229]
[1765385332665,4.86663856,3354.3,3354.2,0.00772229]
[1765385334370,4.86663856,3354.3,3354.2,1.18582229]
[1765385334763,4.86663856,3354.3,3354.2,0.00772229]
[1765385335968,3.2656655,3354.3,3354.2,0.00772229]
[1765385336172,3.58254061,3354.3,3354.2,0.00772229]
[1765385336471,3.58254061,3354.3,3353.6,3.2078]
[1765385336472,2.3324,3353.7,3353.6,3.2078]
[1765385336671,4.87068431,3353.7,3353.6,3.2078]
[1765385336975,6.4734655,3353.7,3352.9,6.37448087]
[1765385337161,0.6726,3353.5,3352.9,3.16668087]
[1765385337366,3.2078,3353.2,3353.1,2.4114]
[1765385337569,4.1410655,3353.2,3353.1,2.4114]
[1765385338068,6.9092655,3353.2,3353.1,2.5459]
[1765385338565,5.5203655,3353.2,3353.1,2.5459]
[1765385340964,6.9092655,3353.2,3353.1,2.5459]
[1765385341466,3.5712,3353.0,3352.9,1.46644295]
[1765385341774,4.5044655,3353.0,3352.9,0.00714295]
[1765385342174,0.9332655,3353.0,3352.9,2.83424295]
[1765385342668,2.3125655,3353.0,3352.9,2.83424295]
[1765385342971,4.5044655,3353.0,3352.9,2.83424295]
[1765385343174,4.5044655,3353.0,3352.9,0.00714295]
[1765385343472,4.5044655,3353.0,3352.9,1.46644295]
[1765385343668,4.5044655,3353.0,3352.9,0.00714295]
[1765385343869,4.5044655,3353.0,3352.9,1.46644295]
[1765385344561,4.5044655,3353.0,3352.9,2.83424295]
[1765385344765,4.5044655,3353.0,3352.9,1.46644295]
[1765385345074,0.9332655,3353.0,3352.9,2.83424295]
[1765385345369,3.2078,3353.2,3353.1,2.8271]
[1765385345575,4.14121822,3353.2,3353.1,2.8271]
[1765385345770,0.93341822,3353.2,3353.1,2.8271]
[1765385345973,0.93784772,3353.5,3353.4,2.8271]
[1765385347778,1.60503908,3354.1,3354.0,2.8271]
[1765385347971,7.58103908,3354.8,3354.7,2.8271]
[1765385348173,7.58103908,3354.8,3354.0,3.95017]
[1765385348382,5.976,3354.8,3354.0,3.95017]
[1765385348571,5.976,3354.8,3354.7,1.4593]
[1765385348972,5.976,3354.8,3354.7,2.8271]
[1765385349175,3.2078,3354.8,3354.7,2.8271]
[1765385349375,4.5871,3354.8,3354.7,2.8271]
[1765385350477,0.00447447,3355.1,3355.0,3.6889]
[1765385350668,0.00447447,3355.1,3355.0,2.8271]
[1765385350869,1.3793,3354.8,3354.7,6.03937447]
[1765385351090,0.00447447,3355.1,3355.0,2.8271]
[1765385351375,0.00447447,3355.1,3355.0,2.97613]
[1765385355581,1.38377447,3355.1,3355.0,2.97613]
[1765385355781,0.00447447,3355.1,3355.0,2.97613]
[1765385356677,3.2078,3355.7,3355.0,2.97613]
[1765385356678,3.2078,3355.7,3355.6,2.7336]
[1765385357282,3.5876,3355.5,3355.4,2.88261]
[1765385357680,3.58998381,3355.5,3355.4,2.88572869]
[1765385357875,2.24898381,3355.5,3355.4,2.88572869]
[1765385358076,3.58998381,3355.5,3355.4,2.88572869]
[1765385358383,3.58998381,3355.5,3355.4,0.00311869]
[1765385358588,0.00238381,3355.5,3355.4,2.73671869]
[1765385359583,0.00238381,3355.5,3355.4,5.15188927]
[1765385359877,3.5375,3356.5,3356.4,1.3148]
[1765385360074,4.44106585,3356.5,3356.4,1.3148]
[1765385360277,4.44106585,3356.5,3356.4,2.7336]
[1765385360878,4.44473454,3356.5,3356.4,2.7336]
[1765385361080,0.80666869,3356.5,3356.4,2.7336]
[1765385361282,2.20016869,3356.5,3356.4,2.7336]
[1765385361680,0.80666869,3356.5,3356.4,2.7336]
[1765385363279,0.00366869,3356.5,3356.4,2.7336]
[1765385363482,0.00366869,3356.5,3356.4,5.9414]
[1765385364677,3.2078,3357.1,3357.0,2.7336]
[1765385364883,6.7954,3357.5,3357.4,1.3148]
[1765385365781,2.7345,3357.2,3357.1,0.00446768]
[1765385366177,2.7345,3357.2,3357.1,1.31926768]
[1765385366377,1.3935,3357.2,3357.1,2.73806768]
[1765385366582,6.79779206,3357.5,3357.4,1.3148]
[1765385366883,7.69751067,3357.5,3357.4,1.3148]
[1765385367084,2.7345,3357.2,3357.1,2.73806768]
[1765385368182,2.7345,3357.2,3357.1,2.61606768]
[1765385368383,2.7345,3357.2,3357.1,0.00446768]
[1765385369894,2.7345,3357.2,3357.1,1.32186768]
[1765385370282,2.7345,3357.2,3357.1,0.00446768]
[1765385370478,2.7345,3357.2,3357.1,1.32186768]
[1765385371489,3.63376199,3357.2,3357.1,1.32186768]
[1765385371790,3.63376199,3357.2,3357.1,0.00446768]
[1765385372192,3.63376199,3357.2,3357.1,2.61606768]
[1765385373692,3.63376199,3357.2,3357.1,1.32186768]
[1765385374693,3.63376199,3357.2,3357.1,0.00446768]
[1765385374994,3.63376199,3357.2,3357.1,1.32186768]
[1765385375787,3.63376199,3357.2,3357.1,0.00446768]
[1765385376395,5.23880107,3357.2,3357.1,0.00446768]
[1765385377501,3.63376199,3357.2,3356.4,3.2078]
[1765385377797,2.6941,3356.1,3356.0,5.8194]
[1765385377984,5.9019,3356.4,3355.6,3.2078]
[1765385378186,2.6941,3355.7,3355.6,5.8194]
[1765385378386,3.59117883,3355.7,3355.6,3.2078]
[1765385378792,3.59117883,3355.7,3355.4,1.32051869]
[1765385378793,3.4618,3355.5,3355.4,1.32051869]
[1765385378993,3.00237883,3355.5,3355.4,2.61471869]
[1765385379194,0.89707883,3355.5,3355.4,5.82251869]
[1765385380700,3.00237883,3355.5,3355.4,5.82251869]
[1765385381110,4.35887883,3355.5,3355.4,5.82251869]
[1765385382707,4.35887883,3355.5,3355.4,3.21091869]
[1765385383213,4.35887883,3355.5,3355.4,4.52831869]
[1765385383512,4.29135883,3355.5,3355.4,4.52831869]
[1765385384008,5.88764957,3355.5,3355.4,0.00311869]
[1765385384212,4.29135883,3355.5,3355.4,0.00311869]
[1765385385512,4.29135883,3355.5,3354.6,2.76065]
[1765385385513,1.3376,3354.7,3354.6,2.76065]
[1765385386115,6.6696,3355.0,3354.9,1.3174]
[1765385386415,2.6941,3354.7,3354.6,0.14905]
[1765385386714,2.69774843,3354.7,3354.6,1.46997582]
[1765385386908,2.69774843,3354.7,3354.6,2.76417582]
[1765385387103,0.00364843,3354.7,3354.6,2.76417582]
[1765385387416,0.00364843,3354.7,3354.6,5.0303364]
[1765385387813,0.00364843,3354.7,3354.6,8.2381364]
[1765385388013,0.00364843,3354.7,3354.6,14.2381364]
[1765385388410,2.69774843,3354.7,3354.6,4.67777582]
[1765385388911,2.69774843,3354.7,3354.6,1.46997582]
[1765385390112,2.69774843,3354.7,3354.6,0.15257582]
[1765385390618,2.69774843,3354.7,3354.6,1.46997582]
[1765385390915,2.69774843,3354.7,3354.6,0.15257582]
[1765385391304,2.69774843,3354.7,3354.6,2.76417582]
[1765385391513,1.34124843,3354.7,3354.6,2.76417582]
[1765385391715,0.00364843,3354.7,3354.6,2.76417582]
[1765385395409,1.34124843,3354.7,3354.6,2.76417582]
[1765385395918,3.58672912,3354.7,3354.6,2.76417582]
[1765385396713,2.23022912,3354.7,3354.6,2.76417582]
[1765385396918,0.89262912,3354.7,3354.6,2.76417582]
[1765385397222,0.00364843,3354.7,3354.6,2.76417582]
[1765385397716,2.69774843,3354.7,3354.6,1.46997582]
[1765385397924,3.58683702,3354.7,3354.6,1.46997582]
[1765385398223,3.58683702,3354.7,3354.6,2.60427582]
[1765385398421,3.58683702,3354.7,3354.6,1.46997582]
[1765385399121,3.58683702,3354.7,3354.6,2.60427582]
[1765385399915,3.58683702,3354.7,3354.6,1.46997582]
[1765385400121,3.58683702,3354.7,3354.6,0.15257582]
[1765385400316,3.58683702,3354.7,3354.6,1.33617582]
[1765385400517,3.58683702,3354.7,3354.6,2.47047582]
[1765385400725,3.58683702,3354.7,3354.6,0.15257582]
[1765385400919,2.23033702,3354.7,3354.6,2.47047582]
[1765385401317,3.40573702,3354.7,3354.6,2.47047582]
[1765385401521,0.89273702,3354.7,3354.6,2.47047582]
[1765385401820,0.75703518,3354.9,3354.8,0.14904]
[1765385402122,2.3592,3355.7,3355.6,1.3326]
[1765385402317,2.3592,3355.2,3354.9,0.14903]
[1765385402526,2.3592,3355.3,3355.2,2.46692]
[1765385402720,6.2898,3355.5,3355.4,2.3179]
[1765385402926,6.2898,3355.5,3355.2,0.14902]
[1765385402927,6.29283722,3355.5,3355.2,0.14902]
[1765385403128,2.3592,3355.3,3355.2,1.33262]
[1765385403327,1.1838,3355.3,3355.2,2.46692]
[1765385404321,2.3592,3355.3,3355.2,2.46692]
[1765385404530,2.3592,3355.3,3355.2,0.14902]
[1765385405028,2.3592,3355.3,3355.2,1.33262]
[1765385405227,2.3592,3355.3,3355.2,2.46692]
[1765385406327,2.3592,3355.3,3355.2,0.14902]
[1765385406827,2.3592,3355.3,3355.2,1.33262]
[1765385407230,2.3592,3354.7,3354.6,0.00352582]
[1765385411828,2.9647,3355.0,3354.9,2.3279]
[1765385412131,5.4497,3355.4,3354.9,0.14903]
[1765385412429,0.72583722,3355.5,3355.2,2.3279]
[1765385412629,0.72583722,3355.5,3354.8,2.48186283]
[1765385412630,0.00303722,3355.5,3355.4,5.68471]
[1765385414331,1.80293722,3355.5,3355.4,5.68471]
[1765385414538,3.85343652,3355.5,3355.4,5.68471]
[1765385414735,3.85343652,3355.5,3355.4,4.52661]
[1765385415334,2.72153739,3355.5,3355.4,5.68471]
[1765385415636,0.00446768,3356.0,3355.9,2.47689]
[1765385415836,0.00446768,3356.0,3355.9,5.68469]
[1765385416032,1.7999,3357.0,3356.9,1.6546]
[1765385416630,1.80232033,3357.0,3356.9,1.6546]
[1765385417134,2.93382033,3357.0,3356.6,0.15342768]
[1765385417637,0.69192033,3357.0,3356.6,2.07882768]
[1765385417929,2.93382033,3357.0,3356.9,0.9627]
[1765385418325,2.93382033,3357.0,3356.6,0.15342768]
[1765385418528,1.1104,3356.7,3356.6,2.05562768]
[1765385419328,2.2419,3356.7,3356.6,0.00446768]
[1765385419733,2.2419,3356.7,3356.6,0.94336768]
[1765385419933,2.93382033,3357.0,3356.9,0.9267]
[1765385420235,1.80232033,3357.0,3356.9,1.8534]
[1765385420839,0.69192033,3357.0,3356.9,1.8534]
[1765385422536,0.00242033,3357.0,3356.9,4.48420283]
[1765385422735,0.00446768,3357.3,3357.2,0.14893]
[1765385422940,0.00446768,3357.3,3357.2,5.14943]
[1765385423236,2.24636768,3357.3,3357.2,0.14893]
[1765385423431,2.24636768,3357.3,3357.2,1.03923]
[1765385423837,2.2419,3356.9,3356.8,4.9644]
[1765385424029,2.24518303,3356.9,3356.8,4.96752608]
[1765385424231,2.24518303,3356.9,3356.8,3.21092608]
[1765385424433,2.24518303,3356.9,3356.8,4.08922608]
[1765385424937,2.24518303,3356.9,3356.8,3.21092608]
[1765385425136,2.24518303,3356.9,3356.8,4.08922608]
[1765385425538,0.00328303,3356.9,3356.8,4.95592608]
[1765385425836,2.24518303,3356.9,3356.8,4.08922608]
[1765385426543,0.00328303,3356.9,3356.8,5.10487608]
[1765385427642,0.00446768,3357.3,3357.2,0.99173]
[1765385427849,0.00446768,3357.3,3357.2,5.04233]
[1765385428946,0.00728895,3357.3,3357.2,5.04233]
[1765385429137,0.6895,3358.0,3357.9,1.7695]
[1765385430042,1.1486,3358.2,3358.1,1.74029]
[1765385430247,0.00446768,3358.3,3358.2,1.74029]
[1765385430446,0.00796731,3358.3,3358.2,1.74029]
[1765385431249,3.2078,3358.8,3358.7,1.71907]
[1765385431443,0.6895,3359.0,3358.7,1.71907]
[1765385431444,0.6895,3359.0,3358.9,1.5702]
[1765385431636,0.6895,3359.0,3358.9,1.71906]
[1765385431839,0.6749,3359.5,3359.1,0.14884]
[1765385432044,0.6749,3359.5,3359.4,1.5468]
[1765385432551,0.00273815,3359.5,3359.4,1.69907271]
[1765385432751,3.815e-05,3359.5,3359.4,7.69907271]
[1765385433051,0.00296713,3359.8,3359.7,1.66922]
[1765385433345,0.00296713,3359.8,3359.7,4.87702]
[1765385433852,0.00507307,3359.8,3359.7,4.87702]
[1765385435339,3.2078,3360.6,3360.5,0.7323]
[1765385435543,3.2078,3361.4,3361.3,0.7323]
[1765385435854,2.3206,3361.1,3361.0,0.14876]
[1765385436042,2.9955,3360.5,3360.4,3.2078]
[1765385436241,2.3206,3360.3,3360.2,0.1488]
[1765385436549,0.00286595,3360.3,3360.2,1.5904]
[1765385436744,2.32346595,3360.3,3359.9,0.00446768]
[1765385437151,0.6749,3360.0,3359.9,1.42446768]
[1765385438353,2.9955,3360.0,3359.9,0.00446768]
[1765385438754,2.9955,3360.0,3359.9,0.70296768]
[1765385438947,2.9955,3360.0,3359.9,0.00446768]
[1765385439151,1.8235,3360.0,3359.9,0.69156768]
[1765385439342,1.57118347,3360.0,3359.9,1.37866768]
[1765385439546,0.00286595,3360.3,3360.2,1.3742]
[1765385439947,0.00286595,3360.3,3360.0,1.50021]
[1765385439948,1.1486,3360.1,3360.0,1.50021]
[1765385440149,0.8952485,3360.1,3360.0,1.50021]
[1765385440355,1.15146595,3360.3,3360.2,0.6757]
[1765385440651,1.15146595,3360.3,3360.2,1.5002]
[1765385440652,0.00286595,3360.3,3360.2,1.5002]
[1765385440953,3.2078,3361.4,3360.9,1.3228]
[1765385441159,0.89510618,3361.0,3360.9,1.47157]
[1765385441452,0.6749,3361.5,3361.4,1.3228]
[1765385441653,1.57007393,3361.5,3361.4,1.3228]
[1765385441853,3.2078,3361.9,3361.4,1.3228]
[1765385442048,0.6749,3362.5,3361.8,2.48186283]
[1765385442251,0.6749,3363.0,3362.9,0.14868]
[1765385442952,0.67828648,3363.0,3362.9,0.15204893]
[1765385443256,2.81492508,3364.5,3363.1,0.14867]
[1765385443457,0.6749,3363.6,3363.4,3.2078]
[1765385443661,0.6749,3363.6,3363.2,0.15312037]
[1765385444157,0.67858727,3363.6,3363.5,3.2078]
[1765385444867,0.6749,3364.5,3363.5,11.68966283]
[1765385445051,0.6749,3364.5,3364.3,3.2078]
[1765385445357,0.6749,3364.5,3364.3,3.35641]
[1765385445554,0.6749,3364.5,3364.3,3.2078]
[1765385445963,2.3206,3364.4,3364.3,3.2078]
[1765385446356,2.3206,3364.0,3363.9,3.2078]
[1765385446951,0.67847803,3364.5,3363.9,3.2078]
[1765385447158,1.1486,3364.0,3363.9,3.2078]
[1765385447354,0.67847803,3364.5,3363.9,3.2078]
[1765385447556,0.67847803,3364.5,3364.4,3.2078]
[1765385447860,4.823e-05,3364.7,3364.6,0.1486]
[1765385448357,4.823e-05,3364.7,3364.6,6.1486]
[1765385448861,0.00313302,3364.7,3364.6,0.1486]
[1765385449059,0.00313302,3364.7,3364.6,6.1486]
[1765385449651,1.15173302,3364.7,3364.6,0.1486]
[1765385449853,0.00313302,3364.7,3364.6,0.1486]
[1765385450360,3.302e-05,3364.7,3364.6,6.1486]
[1765385450556,0.6749,3364.9,3364.8,0.1486]
[1765385450762,0.6749,3364.9,3364.8,3.3564]
[1765385451258,0.6749,3365.4,3365.3,0.14857]
[1765385451455,0.67789329,3365.4,3365.3,3.35908157]
[1765385452161,0.6749,3366.3,3365.3,9.21051157]
[1765385452466,1.1486,3366.0,3365.9,3.2078]
[1765385452764,2.3206,3366.0,3365.9,3.2078]
[1765385452965,2.3206,3365.4,3365.3,0.00271157]
[1765385453163,2.32435752,3365.4,3365.3,0.00271157]
[1765385454465,0.00375752,3365.4,3365.3,3.35908157]
[1765385456563,2.32435752,3365.4,3365.3,3.35908157]
[1765385456763,1.15235752,3365.4,3365.3,3.35908157]
[1765385456964,2.32435752,3365.4,3365.3,3.21051157]
[1765385457466,0.00375752,3365.4,3365.3,3.35908157]
[1765385459072,2.42085752,3365.4,3365.3,3.35908157]
[1765385459463,0.00375752,3365.4,3365.3,3.35908157]
[1765385459766,2.57235752,3365.4,3365.3,3.35908157]
[1765385459966,0.00375752,3365.4,3365.3,3.35908157]
[1765385460368,2.57235752,3365.4,3365.3,3.35908157]
[1765385460769,1.30385752,3365.4,3365.3,3.35908157]
[1765385461071,0.00375752,3365.4,3365.3,3.35908157]
[1765385461872,0.6749,3365.6,3365.3,3.35908157]
[1765385461873,0.6749,3365.6,3365.5,0.14856]
[1765385462171,0.6749,3366.3,3365.3,3.21051157]
[1765385462475,0.81127311,3366.2,3366.1,0.14854]
[1765385462665,0.81127311,3366.2,3366.1,3.35634]
[1765385462865,0.81510232,3366.2,3366.1,3.35634]
[1765385464166,2.11520232,3366.2,3366.1,3.35634]
[1765385464370,4.95353547,3366.2,3366.1,3.2078]
[1765385464568,3.38370232,3366.2,3366.1,3.2078]
[1765385465170,2.5686,3365.8,3365.7,3.05651457]
[1765385465474,3.37987311,3365.8,3365.7,3.05651457]
[1765385466175,3.3493,3365.4,3365.3,0.00271157]
[1765385466378,4.16057311,3365.4,3365.3,0.00271157]
[1765385466974,1.3001,3364.7,3364.6,3.3564]
[1765385467175,0.81127311,3364.7,3364.6,3.3564]
[1765385468091,0.81127311,3364.7,3364.6,3.35915722]
[1765385468290,2.38698707,3364.7,3364.6,3.35915722]
[1765385469195,0.81127311,3364.7,3364.6,3.35915722]
[1765385470691,2.11137311,3364.7,3364.6,3.35915722]
[1765385470987,0.81127311,3364.7,3364.6,3.35915722]
[1765385471192,2.92938568,3364.7,3364.6,3.35915722]
[1765385472192,2.26187311,3364.7,3364.6,3.35915722]
[1765385472887,0.81127311,3364.7,3364.6,3.35915722]
[1765385473581,1.45514737,3365.0,3364.9,0.14859]
[1765385473791,2.89881257,3365.4,3365.3,0.14857]
[1765385473792,2.2313,3365.4,3365.3,0.14857]
[1765385473994,0.7807,3365.4,3365.3,0.14857]
[1765385474994,1.4506,3364.7,3364.6,3.21055722]
[1765385475191,0.8952,3364.8,3364.7,0.1486]
[1765385477387,2.3458,3364.8,3364.7,0.1486]
[1765385477992,3.7569,3364.8,3364.7,0.1486]
[1765385478792,2.8617,3364.4,3364.3,0.00446037]
[1765385479094,2.8617,3364.0,3363.4,3.2078]
[1765385479586,2.8617,3364.0,3363.9,0.22747466]
[1765385480482,0.8952,3364.2,3363.9,2.4797417]
[1765385480691,0.8952,3364.2,3364.1,0.14863]
[1765385484102,3.9885,3365.4,3364.7,0.1486]
[1765385484404,3.9885,3365.4,3364.7,3.3564]
[1765385484701,0.7807,3365.4,3365.3,0.14857]
[1765385485207,0.8952,3366.0,3365.9,0.14855]
[1765385485898,0.00382921,3366.2,3366.1,0.14854]
[1765385486093,2.86552921,3366.2,3366.1,0.14854]
[1765385486296,3.7569,3366.0,3365.9,0.2394364]
[1765385486500,4.45797374,3366.0,3365.9,0.2394364]
[1765385486700,2.8617,3365.9,3365.8,3.2078]
[1765385487004,0.8952,3366.0,3365.9,0.14855]
[1765385487300,0.8952,3366.0,3365.9,0.26215]
[1765385487501,0.8952,3366.0,3365.9,2.62801704]
[1765385487699,0.8952,3366.0,3365.9,2.40081704]
[1765385488602,0.00382921,3366.2,3366.1,0.35454]
[1765385488801,3.08082921,3366.2,3366.1,0.14854]
[1765385489893,0.00382921,3366.2,3366.1,0.32314]
[1765385490300,0.00382921,3366.2,3366.1,0.14854]
[1765385490495,0.00382921,3366.2,3366.1,2.48810704]
[1765385491303,2.7518,3367.6,3367.5,0.30568]
[1765385491502,0.8968,3368.4,3368.3,0.22704]
[1765385491811,0.8968,3368.4,3368.3,0.30564]
[1765385492107,3.9738,3368.4,3368.3,0.14844]
[1765385492309,3.97720995,3368.4,3368.3,0.15150611]
[1765385492504,2.40330995,3368.4,3368.3,0.15150611]
[1765385492709,0.90020995,3368.4,3368.3,0.15150611]
[1765385492904,3.97720995,3368.4,3368.3,0.15150611]
[1765385493304,0.90020995,3368.4,3368.3,3.53317315]
[1765385493506,0.8968,3369.0,3368.9,1.60991]
[1765385493810,0.8968,3369.0,3368.9,0.14841]
[1765385494000,0.8968,3369.0,3368.9,3.35621]
[1765385494202,0.8968,3369.0,3368.9,4.80051]
[1765385494399,0.0038009,3369.0,3368.9,6.0964]
[1765385494611,0.0038009,3369.0,3368.9,4.80051]
[1765385495103,1.5069009,3369.0,3368.9,3.35621]
[1765385495311,3.077,3368.6,3368.5,3.2078]
[1765385496411,1.5031,3368.6,3368.5,3.2078]
[1765385496906,3.077,3368.6,3368.5,3.2078]
[1765385497700,1.5739,3368.6,3368.3,0.00306611]
[1765385497901,2.3999,3368.4,3368.3,0.15150611]
[1765385498113,0.0038009,3369.0,3368.3,0.00306611]
[1765385498313,0.0038009,3369.0,3368.9,1.5183]
[1765385498518,0.0038009,3369.0,3368.9,3.16281]
[1765385498713,1.5069009,3369.0,3368.9,0.14841]
[1765385499017,0.0038009,3369.0,3368.9,0.14841]
[1765385499206,0.0038009,3369.0,3368.9,1.64931]
[1765385499406,0.0038009,3369.0,3368.9,3.14541]
[1765385499903,0.0038009,3369.0,3368.9,3.13281]
[1765385500511,0.0038009,3369.0,3368.9,1.64931]
[1765385500716,1.5069009,3369.0,3368.9,0.14841]
[1765385501121,0.0038009,3369.0,3368.9,1.61461]
[1765385501320,3.0808009,3369.0,3368.9,0.14841]
[1765385503415,3.077,3368.8,3368.7,3.07482874]
[1765385503612,3.077,3368.8,3368.3,4.64266611]
[1765385503613,0.8968,3368.4,3368.3,4.64266611]
[1765385503822,0.8968,3368.4,3368.3,6.22290611]
[1765385504322,1.5031,3368.8,3368.7,0.14842]
[1765385504622,0.0038009,3369.0,3368.8,0.14842]
[1765385504920,1.5069009,3369.0,3368.3,3.21086611]
[1765385505122,0.8968,3368.4,3368.3,3.35930611]
[1765385505714,0.8968,3368.4,3368.3,4.80180611]
[1765385506020,0.8968,3368.4,3368.3,6.22710611]
[1765385506725,0.0038009,3369.0,3368.6,0.14843]
[1765385507418,1.5069009,3369.0,3368.6,0.14843]
[1765385507622,1.5031,3368.7,3368.6,0.14843]
[1765385508116,0.0038009,3369.0,3368.6,0.14843]
[1765385508320,0.0038009,3369.0,3368.7,3.2078]
[1765385509022,1.5031,3368.8,3368.7,3.2078]
[1765385509224,3.077,3368.8,3368.7,3.2078]
[1765385509923,0.0038009,3369.0,3368.6,0.14843]
[1765385510424,0.0038009,3369.0,3368.7,3.35622]
[1765385510719,1.5031,3368.8,3368.7,3.35622]
[1765385510923,3.077,3368.8,3368.7,3.35622]
[1765385511119,3.9738,3368.4,3368.3,3.21086611]
[1765385512315,3.9738,3368.4,3367.3,2.25226704]
[1765385512316,3.077,3368.1,3367.7,3.2078]
[1765385512518,3.077,3367.8,3367.7,3.2078]
[1765385512821,4.1046,3368.4,3367.8,0.14846]
[1765385513018,4.1046,3368.4,3368.0,0.14845]
[1765385513220,3.2078,3368.4,3368.3,5.32176704]
[1765385513424,0.0038009,3369.0,3368.5,0.14843]
[1765385514323,3.077,3368.7,3368.6,0.14843]
[1765385514625,3.9738,3368.4,3368.3,0.00309403]
[1765385514831,3.9738,3368.4,3368.0,0.14845]
[1765385514832,3.077,3368.1,3368.0,0.14845]
[1765385515330,1.5031,3368.1,3368.0,0.14845]
[1765385515530,3.2529,3368.1,3368.0,0.14845]
[1765385515727,3.2529,3368.1,3368.0,0.15119431]
[1765385519923,4.1046,3368.4,3368.0,3.50864431]
[1765385520124,3.2078,3368.9,3368.4,0.14844]
[1765385520435,3.4947,3368.5,3368.4,0.14844]
[1765385521235,3.4947,3368.2,3368.1,3.2078]
[1765385521530,0.0038009,3369.0,3368.1,3.2078]
[1765385521731,0.0038009,3369.0,3368.7,0.14842]
[1765385522034,0.0038009,3369.0,3368.9,1.7086]
[1765385522231,0.0038009,3369.0,3368.9,5.06481]
[1765385522431,3.2078,3369.7,3369.4,3.5059]
[1765385522631,3.4947,3369.4,3369.3,0.14839]
[1765385522833,1.0733,3369.6,3369.3,1.85699]
[1765385523032,3.2078,3370.4,3369.3,5.06479]
[1765385523231,0.68829194,3370.1,3369.3,5.06479]
[1765385523429,0.691954,3370.1,3369.3,5.06479]
[1765385523641,3.4947,3369.3,3369.2,0.00445322]
[1765385523837,3.4947,3369.3,3368.6,0.14843]
[1765385523838,3.4947,3368.7,3368.6,0.14843]
[1765385524036,1.0733,3369.0,3368.6,1.85703]
[1765385524338,1.0733,3369.0,3368.6,0.14843]
[1765385524339,3.4947,3368.7,3368.6,0.14843]
[1765385525035,1.07772939,3369.0,3368.6,1.85703]
[1765385525440,1.8001,3368.7,3368.6,0.14843]
[1765385525735,0.00442939,3369.0,3368.9,3.5059]
[1765385525933,0.00442939,3369.0,3368.9,6.7137]
[1765385526134,0.00442939,3369.0,3368.9,6.86211]
[1765385527244,0.00366206,3370.1,3370.0,3.65427]
[1765385528441,1.80376206,3370.1,3370.0,0.14837]
[1765385528832,0.00366206,3370.1,3370.0,1.85697]
[1765385529233,3.4947,3369.8,3369.7,3.2078]
[1765385529636,0.00366206,3370.1,3369.7,4.9164]
[1765385529835,0.00366206,3370.1,3369.7,3.35618]
[1765385529836,1.8001,3369.8,3369.7,3.35618]
[1765385530039,0.00366206,3370.1,3370.0,1.7086]
[1765385530238,1.80376206,3370.1,3369.7,3.35618]
[1765385530742,0.00366206,3370.1,3370.0,1.7086]
[1765385530943,1.80376206,3370.1,3369.7,3.35618]
[1765385531234,3.4947,3369.8,3369.7,3.35618]